bitfinex/quotes_BTCUSD_20260308
["timestamp","ask_amount","ask_price","bid_price","bid_amount"]
[1772965349483,0.07356511,67967.0,67953.0,0.03218252]
[1772965349621,0.00148,67966.0,67953.0,0.03218252]
[1772965350007,0.07356511,67967.0,67953.0,0.03218252]
[1772965350210,0.00148,67966.0,67953.0,0.03218252]
[1772965351713,0.07356727,67965.0,67955.0,0.03218252]
[1772965352727,0.07417653,67975.0,67957.0,0.04826327]
[1772965352934,0.04680112,67972.0,67958.0,0.03218252]
[1772965353103,0.04680112,67972.0,67958.0,0.03366252]
[1772965353716,0.07356078,67971.0,67960.0,0.03218252]
[1772965353929,0.07504078,67971.0,67959.0,0.07357377]
[1772965354131,0.04680112,67968.0,67956.0,0.07357599]
[1772965354499,0.05250356,67968.0,67957.0,0.001]
[1772965354656,0.04680112,67968.0,67957.0,0.001]
[1772965355036,0.05250416,67968.0,67957.0,0.001]
[1772965355480,0.05250416,67968.0,67956.0,0.07357599]
[1772965356037,0.07356511,67967.0,67955.0,0.07357702]
[1772965356231,0.07356511,67967.0,67955.0,0.10575954]
[1772965357113,0.04680112,67966.0,67955.0,0.10575954]
[1772965357316,0.00148,67965.0,67956.0,0.03218252]
[1772965358036,0.07356835,67964.0,67957.0,0.07357593]
[1772965360538,0.07356835,67964.0,67954.0,0.07357702]
[1772965360880,0.0735673,67965.0,67955.0,0.03489264]
[1772965362676,0.0735673,67965.0,67956.0,0.07357702]
[1772965364575,0.0735673,67965.0,67953.0,0.07378026]
[1772965364576,0.07356944,67963.0,67953.0,0.07378026]
[1772965365312,0.07356944,67963.0,67954.0,0.03489264]
[1772965365623,0.07356935,67964.0,67954.0,0.03489264]
[1772965366165,0.07355892,67973.0,67956.0,0.03489264]
[1772965366401,0.07355993,67972.0,67956.0,0.03489264]
[1772965367122,0.00210001,67975.0,67958.0,0.03489264]
[1772965367326,0.00062001,67975.0,67962.0,0.03489264]
[1772965367534,0.00022001,67977.0,67965.0,0.04826327]
[1772965367679,0.07377436,67977.0,67966.0,0.04826327]
[1772965367880,0.07377436,67977.0,67967.0,0.03489264]
[1772965368306,0.0002251,67995.0,67963.0,0.00148]
[1772965368515,1.0018,68000.0,67971.0,0.17473296]
[1772965368516,1.07532982,68000.0,67971.0,0.17473296]
[1772965368788,1.07532982,68000.0,67975.0,0.03489264]
[1772965368789,0.00812484,67997.0,67975.0,0.03489264]
[1772965369166,0.04884779,67995.0,67977.0,0.03489264]
[1772965369436,0.07353373,67996.0,67979.0,0.03489264]
[1772965369647,0.00148,67997.0,67980.0,0.03489264]
[1772965369648,0.07501345,67997.0,67980.0,0.03489264]
[1772965369840,0.07355272,67995.0,67982.0,0.02060557]
[1772965370070,0.07355272,67995.0,67983.0,0.03489264]
[1772965370206,0.04884779,68003.0,67976.0,0.07355537]
[1772965370207,0.000155,68009.0,67985.0,0.03489264]
[1772965370418,0.000155,68009.0,67987.0,0.03489264]
[1772965370419,0.07352576,68004.0,67987.0,0.03489264]
[1772965370623,0.04884779,67996.0,67981.0,0.00148]
[1772965370850,0.04884779,67994.0,67979.0,0.00148]
[1772965371181,0.00148,67993.0,67982.0,0.03489264]
[1772965371374,0.12678335,67999.0,67982.0,0.03489264]
[1772965371549,0.0532521,67998.0,67982.0,0.03489264]
[1772965371955,0.0532521,67998.0,67984.0,0.03489264]
[1772965372163,0.05327813,68009.0,67985.0,0.00148]
[1772965372507,0.07546748,68010.0,67985.0,0.00148]
[1772965372508,0.06203681,68006.0,67986.0,0.03637264]
[1772965372986,0.07352508,68004.0,67987.0,0.07354347]
[1772965373195,0.05327813,68003.0,67988.0,0.03489264]
[1772965373559,0.07546737,68010.0,67990.0,0.03489264]
[1772965373784,0.05475813,68009.0,67990.0,0.03489264]
[1772965374040,0.00148,68008.0,67990.0,0.03489264]
[1772965374220,0.05475813,68008.0,67990.0,0.03489264]
[1772965374422,0.00022001,68000.0,67990.0,0.03489264]
[1772965374846,0.00022001,68007.0,67991.0,0.02625261]
[1772965374999,0.07352292,68006.0,67994.0,0.03489264]
[1772965375806,0.05332214,68005.0,67994.0,0.03489264]
[1772965377307,0.07500508,68004.0,67996.0,0.03489264]
[1772965377459,0.07500508,68004.0,67993.0,0.07353698]
[1772965377659,0.07500508,68004.0,67992.0,0.03489264]
[1772965377660,0.05332214,68003.0,67992.0,0.03489264]
[1772965378183,0.07500508,68004.0,67992.0,0.03489264]
[1772965378383,0.12832722,68004.0,67992.0,0.03489264]
[1772965378682,0.07500508,68004.0,67992.0,0.03489264]
[1772965379030,0.05332214,68003.0,67992.0,0.03489264]
[1772965379256,0.05332214,68001.0,67992.0,0.03489264]
[1772965379453,0.05332214,68001.0,67992.0,0.10843051]
[1772965380255,0.05332214,68001.0,67990.0,0.07353806]
[1772965380530,0.07352724,68003.0,67988.0,0.03637264]
[1772965380880,0.07500616,68004.0,67989.0,0.02311397]
[1772965380881,0.00148,68004.0,67989.0,0.02311397]
[1772965381082,0.00148,68004.0,67988.0,0.00148]
[1772965381083,0.00148,68006.0,67991.0,0.07353914]
[1772965381278,0.08601098,68015.0,67991.0,0.07353914]
[1772965381279,0.17648,68034.0,67992.0,0.03827416]
[1772965381483,1e-08,68014.0,67992.0,0.03827416]
[1772965381716,0.05794493,68021.0,67994.0,0.03827416]
[1772965381717,0.07350934,68019.0,67994.0,0.03827416]
[1772965381922,0.0060211,68024.0,67997.0,0.04826327]
[1772965382176,0.00148,68023.0,67997.0,0.04826327]
[1772965382373,0.0060211,68024.0,68000.0,0.03827416]
[1772965382597,0.0060211,68024.0,67995.0,0.00148]
[1772965382598,0.00148,68023.0,68003.0,0.05633759]
[1772965382798,0.00022001,68017.0,68007.0,0.05633759]
[1772965383021,0.00022001,68017.0,67995.0,0.11630471]
[1772965383022,0.00022001,68017.0,68009.0,0.03825219]
[1772965383379,0.00022001,68017.0,68011.0,0.03825219]
[1772965384841,1.55117809,68154.0,68011.0,0.03825219]
[1772965384842,0.0092171,68013.0,68011.0,0.03825219]
[1772965385045,0.05478531,68045.0,68014.0,0.03566111]
[1772965385187,0.00148,68044.0,68018.0,0.03526111]
[1772965385395,0.12826825,68043.0,68023.0,0.03839309]
[1772965385797,1e-08,68046.0,68024.0,0.03711494]
[1772965386030,0.00148,68045.0,68026.0,0.03839309]
[1772965386298,1e-08,68046.0,68027.0,0.03711494]
[1772965386498,0.00148,68044.0,68030.0,0.03839309]
[1772965386647,0.00148,68044.0,68022.0,0.00148]
[1772965386648,0.03752984,68043.0,68022.0,0.00148]
[1772965386851,0.03752984,68043.0,68016.0,0.0735115]
[1772965386852,0.05478531,68041.0,68023.0,0.03595103]
[1772965387217,0.00148,68044.0,68023.0,0.03595103]
[1772965387218,0.03752984,68040.0,68023.0,0.03595103]
[1772965387424,0.05478531,68037.0,68023.0,0.03595103]
[1772965387623,0.05478531,68037.0,68012.0,0.13152238]
[1772965387624,0.05478531,68036.0,68013.0,0.03595103]
[1772965387873,0.05478531,68034.0,68013.0,0.03595103]
[1772965388205,0.05478531,68034.0,68014.0,0.03595103]
[1772965388516,0.05478531,68032.0,68014.0,0.03595103]
[1772965388727,0.05478531,68031.0,68014.0,0.03595103]
[1772965388894,0.07348834,68038.0,68015.0,0.03670625]
[1772965389103,0.07348834,68038.0,68012.0,0.07351586]
[1772965389104,0.00148,68037.0,68018.0,0.03852994]
[1772965389360,0.00148,68037.0,68020.0,0.03852994]
[1772965389361,0.0734905,68036.0,68020.0,0.03852994]
[1772965389763,0.05478531,68035.0,68020.0,0.03852994]
[1772965390546,0.0734905,68036.0,68020.0,0.03852994]
[1772965390743,0.00148,68035.0,68020.0,0.03859118]
[1772965390948,0.00148,68034.0,68022.0,0.03859118]
[1772965391144,0.00148,68034.0,68023.0,0.03859118]
[1772965391465,0.00148,68033.0,68023.0,0.03859118]
[1772965391670,0.00148,68033.0,68024.0,0.03859118]
[1772965392003,0.00148,68032.0,68024.0,0.03859118]
[1772965392403,0.07349175,68035.0,68024.0,0.03251408]
[1772965392677,0.00148,68031.0,68024.0,0.03251408]
[1772965393253,0.07349175,68035.0,68016.0,0.03772839]
[1772965393458,0.00148,68030.0,68017.0,0.03772839]
[1772965394854,0.07348446,68042.0,68016.0,0.07351195]
[1772965394855,0.06983987,68070.0,68032.0,0.05718074]
[1772965394999,0.05478531,68069.0,68036.0,0.05718074]
[1772965395322,0.05626531,68069.0,68040.0,0.04129907]
[1772965395536,0.05626531,68069.0,68042.0,0.04129907]
[1772965395537,0.05478531,68067.0,68042.0,0.04129907]
[1772965395742,0.00080254,68066.0,68042.0,0.04129907]
[1772965395895,0.05478531,68067.0,68042.0,0.04129907]
[1772965395896,0.05478531,68065.0,68042.0,0.04129907]
[1772965396092,0.05478531,68065.0,68043.0,0.05718074]
[1772965396318,0.00080254,68076.0,68042.0,0.00039751]
[1772965396319,0.06983987,68085.0,68046.0,0.03879907]
[1772965396536,0.07342766,68095.0,68043.0,0.0682968]
[1772965396537,0.0738508,68089.0,68043.0,0.0682968]
[1772965396796,0.0738508,68089.0,68054.0,0.03825224]
[1772965396797,0.00148,68076.0,68054.0,0.03825224]
[1772965396973,0.05478531,68083.0,68051.0,0.00575]
[1772965396974,0.00148,68075.0,68058.0,0.03825224]
[1772965397177,0.001,68070.0,68061.0,0.05718074]
[1772965397372,0.001,68070.0,68056.0,0.05718074]
[1772965397373,0.00148,68070.0,68056.0,0.05718074]
[1772965397589,0.00148,68071.0,68062.0,0.03825224]
[1772965397832,0.00148,68085.0,68066.0,0.03825224]
[1772965397969,0.05978531,68090.0,68068.0,0.05718074]
[1772965398185,0.00679813,68087.0,68069.0,0.03825224]
[1772965398556,0.07843314,68090.0,68069.0,0.03825224]
[1772965398557,0.05626531,68086.0,68069.0,0.03825224]
[1772965398736,0.07843314,68090.0,68070.0,0.03825224]
[1772965398965,0.005,68090.0,68074.0,0.05195408]
[1772965399172,0.07341349,68108.0,68075.0,0.00148]
[1772965399321,0.00148,68107.0,68081.0,0.05718074]
[1772965399522,0.08341065,68111.0,68081.0,0.05718074]
[1772965399523,0.05478531,68105.0,68083.0,0.05718074]
[1772965399749,0.05478531,68103.0,68086.0,0.05195408]
[1772965399923,0.05478531,68103.0,68079.0,0.07488192]
[1772965399924,0.08341173,68111.0,68088.0,0.05195408]
[1772965400118,0.00148,68110.0,68081.0,0.0734416]
[1772965400420,0.00148,68109.0,68086.0,0.05195408]
[1772965400642,0.05478531,68108.0,68086.0,0.05195408]
[1772965400844,0.05478531,68108.0,68087.0,0.04179217]
[1772965401049,0.05478531,68110.0,68089.0,0.04179217]
[1772965401270,0.05478531,68108.0,68089.0,0.04179217]
[1772965401639,0.00148,68107.0,68091.0,0.05718074]
[1772965401827,0.08341173,68111.0,68090.0,0.07343222]
[1772965401828,0.00148,68106.0,68094.0,0.04179217]
[1772965402024,0.01,68111.0,68095.0,0.05718074]
[1772965402233,0.01,68111.0,68098.0,0.04179217]
[1772965402430,0.0004165,68112.0,68102.0,0.04179217]
[1772965402639,0.0004165,68112.0,68090.0,0.03772839]
[1772965402640,0.05478531,68110.0,68090.0,0.03772839]
[1772965402849,0.03295801,68111.0,68090.0,0.00039751]
[1772965402850,0.03172026,68108.0,68090.0,0.00039751]
[1772965403051,0.05478531,68106.0,68090.0,0.00039751]
[1772965403242,0.05478531,68104.0,68079.0,0.03772839]
[1772965403442,0.0734182,68103.0,68081.0,0.07344192]
[1772965403749,0.12820351,68104.0,68086.0,0.03772839]
[1772965403948,0.00148,68103.0,68088.0,0.03772839]
[1772965404356,0.05478531,68102.0,68088.0,0.03772839]
[1772965404802,0.0734182,68104.0,68079.0,0.07383993]
[1772965404803,0.05478531,68100.0,68079.0,0.00039801]
[1772965404964,0.05478531,68100.0,68080.0,0.03772839]
[1772965405599,0.05478531,68098.0,68080.0,0.03772839]
[1772965405807,0.07342251,68099.0,68051.0,0.00575]
[1772965405808,0.01656272,68097.0,68051.0,0.00575]
[1772965406010,0.01656272,68093.0,68054.0,0.03772839]
[1772965406228,0.01640997,68089.0,68051.0,0.00614843]
[1772965406586,0.00148,68092.0,68043.0,0.03772839]
[1772965406587,0.05478531,68074.0,68043.0,0.03772839]
[1772965406793,0.0004,68075.0,68034.0,0.03772839]
[1772965406794,0.06953428,68068.0,68034.0,0.03772839]
[1772965406987,0.06953428,68068.0,68009.0,0.11672121]
[1772965406988,0.01643037,68046.0,68024.0,1e-08]
[1772965407194,0.01643037,68042.0,68009.0,0.0004165]
[1772965407465,0.05626531,68041.0,68011.0,0.03772839]
[1772965407674,0.05626531,68041.0,68009.0,0.07393531]
[1772965407675,0.05478531,68039.0,68014.0,0.03772839]
[1772965407869,0.24976587,68043.0,68012.0,0.07351535]
[1772965407870,0.12823479,68074.0,68025.0,0.0004]
[1772965408045,0.05478531,68073.0,68029.0,0.03234816]
[1772965408257,0.05478531,68073.0,68037.0,0.264222]
[1772965408432,0.05463254,68073.0,68039.0,0.03772839]
[1772965408633,0.05463254,68073.0,68041.0,0.03772839]
[1772965408988,0.05478531,68071.0,68042.0,0.00144]
[1772965409178,0.05478531,68071.0,68042.0,0.03916839]
[1772965409380,0.05478531,68071.0,68042.0,0.03772839]
[1772965409975,0.05478531,68069.0,68043.0,0.07348294]
[1772965410579,0.06983987,68068.0,68034.0,0.07349189]
[1772965410746,0.05478531,68067.0,68034.0,0.07349189]
[1772965410947,0.06983987,68068.0,68034.0,0.07349189]
[1772965410948,0.05478531,68065.0,68034.0,0.07349189]
[1772965411170,0.05478531,68065.0,68035.0,0.03791761]
[1772965411601,0.05478531,68067.0,68037.0,0.03791761]
[1772965411778,0.05478531,68074.0,68041.0,0.03791761]
[1772965412016,0.07345163,68072.0,68045.0,0.09509835]
[1772965412226,0.07345163,68072.0,68045.0,0.03791761]
[1772965412421,0.05478531,68071.0,68045.0,0.03791761]
[1772965412673,0.00148,68070.0,68045.0,0.03791761]
[1772965412809,0.06469758,68070.0,68046.0,0.03791761]
[1772965413012,0.06469758,68070.0,68041.0,0.07348186]
[1772965413013,0.56417991,68065.0,68025.0,0.07390139]
[1772965413214,0.06321758,68062.0,68025.0,0.07390139]
[1772965413413,0.06321758,68060.0,68026.0,0.03791761]
[1772965413615,0.00078091,68059.0,68025.0,0.0004]
[1772965413840,0.00148,68061.0,68022.0,0.0002]
[1772965413841,0.00245153,68049.0,68022.0,0.0002]
[1772965414088,0.06321758,68046.0,68022.0,0.00059862]
[1772965414368,0.00148,68045.0,68022.0,0.00059862]
[1772965414513,0.06321758,68044.0,68022.0,0.00059862]
[1772965414714,0.06321758,68044.0,68015.0,0.07351238]
[1772965415065,0.06321758,68044.0,68013.0,0.0735143]
[1772965415066,0.06321758,68042.0,68013.0,0.0735143]
[1772965415418,0.00148,68041.0,68013.0,0.0735143]
[1772965415622,0.06321758,68040.0,68013.0,0.0735143]
[1772965415865,0.06321758,68040.0,68014.0,0.03791761]
[1772965416065,0.06321758,68040.0,68015.0,0.07351319]
[1772965416066,0.06321758,68038.0,68015.0,0.07351319]
[1772965416269,0.00148,68037.0,68017.0,0.03791761]
[1772965416469,0.07348294,68043.0,68018.0,0.0635363]
[1772965416630,0.00039862,68044.0,68020.0,0.03791761]
[1772965416832,0.07347158,68054.0,68024.0,0.03791761]
[1772965417138,0.07346856,68057.0,68028.0,0.03791761]
[1772965417139,0.00148,68050.0,68028.0,0.03791761]
[1772965417644,0.00148,68050.0,68029.0,0.03791761]
[1772965418327,0.00148,68049.0,68031.0,0.03791761]
[1772965418511,0.06321758,68050.0,68031.0,0.03791761]
[1772965418657,0.00148,68048.0,68031.0,0.03791761]
[1772965419409,0.06321758,68047.0,68030.0,0.07349698]
[1772965419800,0.00148,68048.0,68031.0,0.03726834]
[1772965420005,0.07922478,68051.0,68031.0,0.03726834]
[1772965420167,0.00148,68050.0,68031.0,0.03726834]
[1772965420387,0.07347646,68049.0,68032.0,0.07349482]
[1772965420905,0.06321758,68048.0,68032.0,0.07349482]
[1772965421461,0.00575,68051.0,68033.0,0.03592746]
[1772965421599,0.00148,68047.0,68033.0,0.03592746]
[1772965422204,0.07347082,68055.0,68032.0,0.07349482]
[1772965422205,0.07345811,68066.0,68034.0,0.0635363]
[1772965422405,0.06469758,68065.0,68036.0,0.03592746]
[1772965422633,0.06321758,68063.0,68038.0,0.03592746]
[1772965423521,0.06321758,68063.0,68024.0,0.079651]
[1772965423813,0.06321758,68063.0,68025.0,0.07350177]
[1772965424592,0.06321758,68061.0,68025.0,0.07350177]
[1772965424824,0.06321758,68059.0,68025.0,0.10942923]
[1772965426309,0.06321758,68059.0,68025.0,0.07350177]
[1772965426865,0.06321758,68056.0,68025.0,0.07350177]
[1772965427120,0.00353606,68053.0,68025.0,0.07350238]
[1772965427310,0.06469758,68052.0,68025.0,0.07350238]
[1772965427519,0.00353606,68049.0,68024.0,0.00714862]
[1772965427689,0.06675364,68048.0,68025.0,0.07350238]
[1772965428094,0.06321758,68048.0,68025.0,0.07350238]
[1772965428299,0.06321758,68046.0,68025.0,0.07350238]
[1772965428466,0.06321758,68044.0,68025.0,0.07350238]
[1772965428670,0.06321758,68042.0,68025.0,0.07350238]
[1772965429408,0.06321758,68042.0,68024.0,0.0806511]
[1772965429409,0.06321758,68040.0,68024.0,0.08065139]
[1772965429998,0.06321758,68038.0,68008.0,0.03592746]
[1772965430356,0.06321758,68034.0,68010.0,0.0735186]
[1772965430689,0.06321758,68034.0,68009.0,0.0739353]
[1772965431334,0.07349374,68033.0,68009.0,0.0739353]
[1772965431685,0.06321758,68032.0,68009.0,0.07393588]
[1772965432181,0.06321758,68030.0,68009.0,0.07393588]
[1772965432356,0.06321758,68030.0,68009.0,0.0004165]
[1772965432561,0.06321758,68030.0,68004.0,0.07352491]
[1772965432755,0.06321758,68028.0,68003.0,0.0056771]
[1772965432956,0.00148,68031.0,68003.0,0.0056771]
[1772965432957,0.03391997,68025.0,68003.0,0.0056771]
[1772965433163,0.06321758,68022.0,68003.0,0.0056771]
[1772965433329,0.06321758,68018.0,68003.0,0.0056771]
[1772965433534,0.06321758,68016.0,68003.0,0.0056771]
[1772965433894,0.07350887,68021.0,68003.0,0.0056771]
[1772965433895,0.11649986,68060.0,68038.0,0.271088]
[1772965434090,0.23796949,68066.0,68034.0,0.0635363]
[1772965434091,0.00148,68050.0,68034.0,0.0635363]
[1772965434267,0.0734547,68070.0,68033.0,0.03592746]
[1772965434468,0.03391997,68073.0,68031.0,0.00148]
[1772965434469,0.06321758,68068.0,68031.0,0.00148]
[1772965434720,0.00148,68067.0,68038.0,0.0635363]
[1772965435024,0.00148,68066.0,68042.0,0.0635363]
[1772965435226,0.00148,68066.0,68044.0,0.0635363]
[1772965435435,0.00148,68066.0,68047.0,0.07347862]
[1772965435625,0.00148,68066.0,68048.0,0.0635363]
[1772965435842,0.07493873,68066.0,68048.0,0.0635363]
[1772965435989,0.00148,68065.0,68048.0,0.0635363]
[1772965436194,0.00148,68065.0,68047.0,0.07347862]
[1772965436535,0.00148,68065.0,68047.0,0.13701492]
[1772965437719,0.00148,68064.0,68047.0,0.13701492]
[1772965438237,0.00148,68064.0,68047.0,0.07347862]
[1772965438642,0.06321758,68063.0,68047.0,0.07347862]
[1772965439650,0.00148,68062.0,68047.0,0.07347862]
[1772965440261,0.00022001,68067.0,68047.0,0.0635363]
[1772965440629,0.00148,68063.0,68047.0,0.0635363]
[1772965440806,0.03391997,68061.0,68033.0,0.07349374]
[1772965440966,0.06321758,68058.0,68034.0,0.0635363]
[1772965441160,0.06321758,68056.0,68034.0,0.0635363]
[1772965441386,0.00148,68055.0,68034.0,0.0635363]
[1772965441938,0.06469758,68055.0,68034.0,0.0635363]
[1772965443156,0.07347106,68054.0,68033.0,0.07497374]
[1772965443359,0.10351618,68053.0,68033.0,0.07497374]
[1772965443556,0.06959621,68052.0,68033.0,0.07497374]
[1772965443759,0.06959621,68052.0,68033.0,0.07349374]
[1772965443959,0.06959621,68050.0,68033.0,0.07349374]
[1772965444160,0.07263114,68048.0,68033.0,0.07349374]
[1772965445341,0.07347813,68048.0,68032.0,0.07349374]
[1772965445538,0.07347106,68055.0,68032.0,0.07349374]
[1772965445539,0.00148,68047.0,68032.0,0.07349374]
[1772965445742,0.00148,68046.0,68032.0,0.07349374]
[1772965445967,0.00148,68045.0,68033.0,0.02351893]
[1772965446169,0.00148,68047.0,68034.0,0.069123]
[1772965446497,0.00148,68046.0,68034.0,0.069123]
[1772965446699,0.00187862,68046.0,68034.0,0.069123]
[1772965447317,0.00187862,68046.0,68035.0,0.07349158]
[1772965447912,0.07263114,68045.0,68030.0,0.07349687]
[1772965449268,0.07348186,68044.0,68028.0,0.07349806]
[1772965449427,0.07263114,68043.0,68027.0,0.07349972]
[1772965449887,0.07263114,68042.0,68027.0,0.07349972]
[1772965454287,0.0734851,68041.0,68027.0,0.07349972]
[1772965454486,0.00148,68040.0,68027.0,0.07349972]
[1772965455133,0.00039862,68046.0,68028.0,0.01996495]
[1772965455134,1e-08,68046.0,68028.0,0.01996495]
[1772965455303,1e-08,68046.0,68027.0,0.07349972]
[1772965455304,0.00148,68045.0,68030.0,0.01996495]
[1772965455507,0.00148,68045.0,68027.0,0.07349972]
[1772965455508,1e-08,68046.0,68033.0,0.069123]
[1772965455733,0.00148,68045.0,68035.0,0.069123]
[1772965456135,0.00148,68045.0,68030.0,0.069123]
[1772965456334,0.00148,68044.0,68030.0,0.07349698]
[1772965456649,0.00148,68044.0,68032.0,0.069123]
[1772965458135,1e-08,68046.0,68032.0,0.069123]
[1772965458266,1e-08,68046.0,68032.0,0.070603]
[1772965458488,0.00148,68045.0,68033.0,0.07349374]
[1772965459884,0.00148,68044.0,68033.0,0.07349374]
[1772965460126,1e-08,68046.0,68034.0,0.01865983]
[1772965460431,0.07285115,68055.0,68037.0,0.01865983]
[1772965460432,1e-08,68055.0,68037.0,0.01865983]
[1772965460634,0.00136925,68074.0,68041.0,0.01996495]
[1772965460635,0.00148,68056.0,68041.0,0.01996495]
[1772965460786,0.00148,68056.0,68044.0,0.069123]
[1772965460986,0.00148,68056.0,68045.0,0.069123]
[1772965461202,0.00148,68056.0,68040.0,0.01996495]
[1772965461536,0.00148,68056.0,68043.0,0.01996495]
[1772965462328,0.07411114,68056.0,68039.0,0.17270297]
[1772965462527,0.07411114,68056.0,68041.0,0.0734851]
[1772965462945,0.14758047,68056.0,68041.0,0.0734851]
[1772965463351,0.14758047,68056.0,68042.0,0.17270297]
[1772965463549,0.14780048,68056.0,68042.0,0.17270297]
[1772965464551,0.14780048,68056.0,68043.0,0.07348294]
[1772965464814,0.07433115,68056.0,68043.0,0.07348294]
[1772965464992,0.07346998,68055.0,68043.0,0.07348294]
[1772965466167,0.0004,68075.0,68043.0,0.07348294]
[1772965466367,0.00148,68073.0,68058.0,0.01996495]
[1772965466566,0.00136925,68074.0,68059.0,0.07346566]
[1772965466765,0.0004,68075.0,68060.0,0.01996495]
[1772965466766,0.00148,68073.0,68060.0,0.01996495]
[1772965466991,0.00148,68074.0,68060.0,0.01996495]
[1772965467511,0.00148,68074.0,68060.0,0.02001175]
[1772965468769,0.00148,68073.0,68061.0,0.07346351]
[1772965469645,0.07411114,68073.0,68061.0,0.07346351]
[1772965469861,0.02136025,68072.0,68060.0,0.07351103]
[1772965470020,0.07263114,68071.0,68060.0,0.07351103]
[1772965470328,0.07263114,68071.0,68052.0,0.07347246]
[1772965470329,0.02136025,68070.0,68055.0,0.07346896]
[1772965470527,0.07263114,68067.0,68055.0,0.07351577]
[1772965470682,0.07346027,68064.0,68055.0,4.681e-05]
[1772965470881,0.07263114,68065.0,68055.0,4.681e-05]
[1772965470882,0.00148,68063.0,68055.0,4.681e-05]
[1772965472415,0.07345919,68067.0,68055.0,4.681e-05]
[1772965472614,0.07345092,68073.0,68055.0,4.681e-05]
[1772965472822,0.00148,68072.0,68057.0,0.07346782]
[1772965473021,0.06770631,68071.0,68057.0,0.07346782]
[1772965473254,0.02104432,68071.0,68057.0,0.07346782]
[1772965473454,0.06770631,68070.0,68057.0,0.07346782]
[1772965473658,0.06770631,68069.0,68057.0,0.07346782]
[1772965473875,0.02062173,68068.0,68057.0,0.07346782]
[1772965474073,0.06770631,68068.0,68057.0,0.07346782]
[1772965474770,0.07345703,68067.0,68055.0,4.681e-05]
[1772965475169,0.00148,68066.0,68055.0,4.681e-05]
[1772965475732,0.07345425,68070.0,68055.0,4.681e-05]
[1772965475733,0.07344183,68082.0,68055.0,4.681e-05]
[1772965475894,0.00148,68072.0,68057.0,0.01996495]
[1772965476610,0.00148,68072.0,68057.0,0.02144495]
[1772965476812,0.00148,68072.0,68058.0,0.07346674]
[1772965477024,0.00148,68072.0,68058.0,0.09343169]
[1772965477407,0.06770631,68073.0,68058.0,0.07346674]
[1772965477635,0.00148,68072.0,68059.0,0.01996495]
[1772965478027,0.06918631,68072.0,68059.0,0.01996495]
[1772965479432,0.07344516,68080.0,68059.0,0.01996495]
[1772965479433,0.0230788,68099.0,68062.0,0.11578193]
[1772965479634,0.01108502,68099.0,68076.0,0.01245782]
[1772965479786,0.00148,68098.0,68080.0,0.01245782]
[1772965480031,0.00148,68098.0,68077.0,0.00148]
[1772965480032,0.00148,68098.0,68082.0,0.01245782]
[1772965480232,0.01108502,68099.0,68084.0,0.01245782]
[1772965480233,0.01256502,68099.0,68084.0,0.01245782]
[1772965480874,0.01256502,68099.0,68084.0,0.01250463]
[1772965481280,0.06770631,68098.0,68084.0,0.00152681]
[1772965481485,0.14113071,68098.0,68084.0,4.681e-05]
[1772965482068,0.0734244,68098.0,68084.0,4.681e-05]
[1772965482431,0.06770631,68097.0,68084.0,4.681e-05]
[1772965482962,0.06770631,68097.0,68079.0,0.07344408]
[1772965483305,0.07970009,68093.0,68079.0,4.709e-05]
[1772965483507,0.07343222,68090.0,68079.0,4.709e-05]
[1772965483807,0.06770631,68089.0,68079.0,4.709e-05]
[1772965484004,0.06770631,68089.0,68075.0,0.0734484]
[1772965484309,0.06770631,68089.0,68075.0,0.07350703]
[1772965484663,0.00148,68088.0,68075.0,0.07350703]
[1772965484868,0.06770631,68087.0,68074.0,0.0734484]
[1772965485082,0.06770631,68085.0,68074.0,0.07352443]
[1772965485285,0.0845084,68099.0,68075.0,0.06716203]
[1772965485627,0.06770631,68098.0,68081.0,0.01245782]
[1772965486036,0.07970009,68098.0,68079.0,0.07344408]
[1772965486991,0.06770631,68098.0,68079.0,0.07344408]
[1772965487199,0.07970009,68098.0,68079.0,0.07344408]
[1772965488016,0.07342467,68097.0,68079.0,0.07344408]
[1772965488276,0.07342467,68097.0,68079.0,0.0859019]
[1772965489166,0.00148,68096.0,68081.0,0.01245782]
[1772965489334,0.00148,68096.0,68084.0,0.06568203]
[1772965489536,0.00148,68096.0,68085.0,0.01245782]
[1772965490078,0.07364406,68098.0,68086.0,0.07343653]
[1772965490269,0.00022001,68098.0,68086.0,0.07343653]
[1772965490427,0.00022001,68098.0,68087.0,0.01245782]
[1772965490627,0.00148,68097.0,68089.0,0.01245782]
[1772965490830,0.0734198,68102.0,68086.0,0.07343653]
[1772965490831,0.07341512,68106.0,68091.0,0.01245782]
[1772965491068,0.00148,68100.0,68092.0,0.01245782]
[1772965491882,0.00148,68102.0,68092.0,0.01245782]
[1772965492049,0.07340488,68116.0,68095.0,0.06568203]
[1772965492233,0.14332865,68117.0,68098.0,0.01245782]
[1772965492433,0.07562234,68117.0,68101.0,0.06568203]
[1772965492701,0.00148,68116.0,68102.0,0.01245782]
[1772965493109,0.07562234,68117.0,68102.0,0.01245782]
[1772965493110,0.00148,68115.0,68102.0,0.01245782]
[1772965493449,0.00039924,68116.0,68102.0,0.01245782]
[1772965493632,0.00039924,68116.0,68106.0,0.01245782]
[1772965493838,0.00187924,68116.0,68107.0,0.01245782]
[1772965494239,0.00039924,68116.0,68109.0,0.01245782]
[1772965494440,0.00187924,68116.0,68109.0,0.01245782]
[1772965494843,0.14146972,68118.0,68109.0,0.01245782]
[1772965495039,0.06806723,68118.0,68109.0,0.01285706]
[1772965495265,0.06770631,68117.0,68101.0,0.00148]
[1772965495495,0.06810555,68117.0,68101.0,0.00148]
[1772965495853,0.06853995,68117.0,68101.0,0.00148]
[1772965496050,0.06770631,68115.0,68085.0,0.08589435]
[1772965496222,0.06770631,68110.0,68085.0,0.08589435]
[1772965496371,0.01199378,68107.0,68085.0,0.07343653]
[1772965496571,0.01199378,68103.0,68085.0,0.07343653]
[1772965496773,0.07970009,68102.0,68085.0,0.07343653]
[1772965497332,0.0734085,68112.0,68085.0,0.07343653]
[1772965497477,0.01199378,68111.0,68086.0,0.01245782]
[1772965497677,0.06770631,68108.0,68086.0,0.01245782]
[1772965497903,0.07970009,68106.0,68086.0,0.01245782]
[1772965498098,0.00148,68105.0,68086.0,0.01245782]
[1772965498329,0.07341712,68104.0,68087.0,0.07343545]
[1772965499035,0.06918631,68103.0,68087.0,0.07343545]
[1772965499236,0.06918631,68103.0,68085.0,0.07343653]
[1772965499438,0.00148,68102.0,68085.0,0.07343653]
[1772965499643,0.06770631,68101.0,68085.0,0.07343653]
[1772965499850,0.06770631,68101.0,68086.0,0.03233746]
[1772965500263,0.06770631,68101.0,68086.0,0.10577366]
[1772965500264,0.07342143,68100.0,68086.0,0.10577366]
[1772965500464,0.14112774,68100.0,68086.0,0.07343585]
[1772965500781,0.07342143,68100.0,68086.0,0.07343585]
[1772965500990,0.07342143,68100.0,68086.0,0.10577331]
[1772965501582,0.07342143,68100.0,68075.0,0.0004]
[1772965501583,0.06770631,68099.0,68075.0,0.0004]